[Event "GrandPrix_30.05"]
[Site "Chess.com"]
[Date "2020.05.30"]
[Round "2"]
[White "Shahinyan_ChessMood"]
[Black "Promacherr"]
[Result "1-0"]
[WhiteElo "2407"]
[BlackElo "2137"]
[TimeControl "600+2"]
[EndTime "8:52:06 PDT"]
[Termination "Shahinyan_ChessMood won by resignation"]

1. e4 {[%clk 0:10:01.9]} 1... e6 {[%clk 0:09:59.1]} 2. d4 {[%clk 0:09:59.9]}
2... d5 {[%clk 0:10:00.4]} 3. e5 {[%clk 0:10:00.7]} 3... c5 {[%clk 0:10:01.4]}
4. c3 {[%clk 0:10:02.6]} 4... Qb6 {[%clk 0:10:02.2]} 5. Nf3 {[%clk 0:10:02.7]}
5... Nc6 {[%clk 0:10:03.3]} 6. a3 {[%clk 0:10:02.7]} 6... Nh6 {[%clk 0:10:04.1]}
7. b4 {[%clk 0:10:02]} 7... cxd4 {[%clk 0:10:04.7]} 8. Bxh6 {[%clk 0:10:03.4]}
8... gxh6 {[%clk 0:10:05.8]} 9. cxd4 {[%clk 0:10:04.7]} 9... Bd7 {[%clk
0:10:05.6]} 10. Ra2 {[%clk 0:10:06]} 10... Rg8 {[%clk 0:10:06.3]} 11. h3 {[%clk
0:09:59]} 11... Rc8 {[%clk 0:10:00.5]} 12. Rc2 {[%clk 0:09:59]} 12... Be7 {[%clk
0:09:35.4]} 13. g3 {[%clk 0:09:26.3]} 13... f6 {[%clk 0:09:32.3]} 14. Be2 {[%clk
0:08:53.6]} 14... fxe5 {[%clk 0:09:07.9]} 15. dxe5 {[%clk 0:08:55.5]} 15... Kd8
{[%clk 0:09:08.4]} 16. Nc3 {[%clk 0:08:47.6]} 16... Nxb4 {[%clk 0:08:56.6]} 17.
axb4 {[%clk 0:08:49.5]} 17... Bxb4 {[%clk 0:08:57.9]} 18. Qd3 {[%clk 0:08:42.3]}
18... Qc5 {[%clk 0:06:07.8]} 19. O-O {[%clk 0:08:03.7]} 19... Bxc3 {[%clk
0:05:58.3]} 20. Rfc1 {[%clk 0:05:49.4]} 20... d4 {[%clk 0:04:56.3]} 21. Qxh7
{[%clk 0:05:41.7]} 21... Qf8 {[%clk 0:01:04.2]} 22. Nxd4 {[%clk 0:05:20.7]}
22... Rxg3+ {[%clk 0:01:03.7]} 23. Kf1 {[%clk 0:04:51.4]} 23... Rg7 {[%clk
0:00:21.8]} 24. Qd3 {[%clk 0:04:05.9]} 24... Qg8 {[%clk 0:00:17.7]} 25. Bg4
{[%clk 0:03:48.6]} 25... Bxd4 {[%clk 0:00:16.2]} 26. Rxc8+ {[%clk 0:03:43.1]}
26... Bxc8 {[%clk 0:00:18.1]} 27. Qxd4+ {[%clk 0:03:44.7]} 27... Bd7 {[%clk
0:00:13.1]} 28. Qxa7 {[%clk 0:03:30.2]} 28... Rxg4 {[%clk 0:00:08.7]} 29. hxg4
{[%clk 0:02:43.5]} 29... Qxg4 {[%clk 0:00:10.6]} 30. Qxb7 {[%clk 0:02:32]} 30...
Qh3+ {[%clk 0:00:10.3]} 31. Qg2 {[%clk 0:02:33.5]} 31... Qf5 {[%clk 0:00:05.2]}
32. Qg8+ {[%clk 0:02:26.7]} 32... Ke7 {[%clk 0:00:06.3]} 33. Qg7+ {[%clk
0:02:28.1]} 33... Ke8 {[%clk 0:00:07.5]} 34. Kg1 {[%clk 0:02:18.9]} 34... Qf4
{[%clk 0:00:06.7]} 35. Rd1 {[%clk 0:02:14.6]} 35... Qg5+ {[%clk 0:00:03.5]} 36.
Qxg5 {[%clk 0:02:13.3]} 36... hxg5 {[%clk 0:00:05.4]} 37. Kg2 {[%clk 0:02:14.7]}
37... Bc6+ {[%clk 0:00:05.2]} 38. Kg3 {[%clk 0:02:15.6]} 38... Be4 {[%clk
0:00:05.8]} 39. Kg4 {[%clk 0:02:14.8]} 1-0

[Event "GrandPrix_30.05"]
[Site "Chess.com"]
[Date "2020.05.30"]
[Round "2"]
[White "rasmussvane"]
[Black "Yurovskykh_Alexander"]
[Result "0-1"]
[WhiteElo "2471"]
[BlackElo "2320"]
[TimeControl "600+2"]
[EndTime "8:52:08 PDT"]
[Termination "Yurovskykh_Alexander won by resignation"]

1. Nf3 {[%clk 0:10:01.9]} 1... d5 {[%clk 0:09:59.9]} 2. g3 {[%clk 0:10:02.7]}
2... c6 {[%clk 0:09:55.9]} 3. Bg2 {[%clk 0:10:04.1]} 3... Bg4 {[%clk 0:09:49]}
4. O-O {[%clk 0:10:04.8]} 4... Nd7 {[%clk 0:09:45.1]} 5. h3 {[%clk 0:10:06.3]}
5... Bh5 {[%clk 0:09:44.4]} 6. d4 {[%clk 0:10:07.6]} 6... e6 {[%clk 0:09:45.1]}
7. c4 {[%clk 0:10:08.6]} 7... Ngf6 {[%clk 0:09:43]} 8. cxd5 {[%clk 0:10:09.8]}
8... exd5 {[%clk 0:09:40.7]} 9. Ne5 {[%clk 0:10:10.7]} 9... Be7 {[%clk
0:09:30.4]} 10. f4 {[%clk 0:10:08.7]} 10... Nxe5 {[%clk 0:09:21.1]} 11. dxe5
{[%clk 0:10:03.2]} 11... Bc5+ {[%clk 0:09:19.7]} 12. Kh2 {[%clk 0:09:47.9]}
12... Nd7 {[%clk 0:09:01]} 13. g4 {[%clk 0:08:55.6]} 13... Bg6 {[%clk
0:08:59.5]} 14. f5 {[%clk 0:08:53.7]} 14... Nxe5 {[%clk 0:09:00.4]} 15. Bf4
{[%clk 0:07:30.2]} 15... Bd6 {[%clk 0:08:13.4]} 16. Nc3 {[%clk 0:06:17.1]} 16...
Nxg4+ {[%clk 0:08:01.8]} 17. hxg4 {[%clk 0:06:14]} 17... Bxf5 {[%clk 0:07:59.1]}
18. e4 {[%clk 0:05:20.8]} 18... Bxf4+ {[%clk 0:06:44.9]} 19. Rxf4 {[%clk
0:05:20.2]} 19... Qd6 {[%clk 0:05:19.4]} 20. Qd2 {[%clk 0:05:11.9]} 20... g5
{[%clk 0:04:52.2]} 21. e5 {[%clk 0:04:58.6]} 21... Qh6+ {[%clk 0:04:48.7]} 22.
Bh3 {[%clk 0:04:59.5]} 22... gxf4 {[%clk 0:04:46.9]} 23. gxf5 {[%clk 0:05:00.4]}
23... Rg8 {[%clk 0:04:38.2]} 24. Ne2 {[%clk 0:04:40.5]} 24... Rg3 {[%clk
0:04:24.3]} 25. Ng1 {[%clk 0:04:21.9]} 25... O-O-O {[%clk 0:03:49.7]} 26. e6
{[%clk 0:04:01.6]} 26... f6 {[%clk 0:03:16.9]} 27. Rc1 {[%clk 0:01:21.8]} 27...
Rdg8 {[%clk 0:02:55.7]} 28. Qe2 {[%clk 0:00:57.6]} 28... Rg2+ {[%clk 0:02:36.3]}
29. Qxg2 {[%clk 0:00:52.8]} 29... Rxg2+ {[%clk 0:02:37.4]} 30. Kxg2 {[%clk
0:00:54.7]} 30... f3+ {[%clk 0:02:36.1]} 31. Nxf3 {[%clk 0:00:55.2]} 31... Qxc1
{[%clk 0:02:37.3]} 32. Kg3 {[%clk 0:00:49]} 32... Qxb2 {[%clk 0:02:35.5]} 33.
Bg4 {[%clk 0:00:48.9]} 33... Kd8 {[%clk 0:02:35.2]} 34. Bh5 {[%clk 0:00:46.5]}
34... Qxa2 {[%clk 0:02:31.9]} 35. Bf7 {[%clk 0:00:46.1]} 35... Ke7 {[%clk
0:02:31.7]} 36. Bg8 {[%clk 0:00:45.4]} 36... Qa3 {[%clk 0:02:11.9]} 37. Bxh7
{[%clk 0:00:44.7]} 37... Qe3 {[%clk 0:02:13.2]} 38. Kg4 {[%clk 0:00:40.1]} 38...
a5 {[%clk 0:02:12.6]} 39. Nh4 {[%clk 0:00:38.6]} 39... Qg5+ {[%clk 0:02:13.2]}
40. Kh3 {[%clk 0:00:38.8]} 40... Qxh4+ {[%clk 0:02:06.5]} 41. Kxh4 {[%clk
0:00:39.2]} 41... a4 {[%clk 0:02:07.9]} 0-1

[Event "GrandPrix_30.05"]
[Site "Chess.com"]
[Date "2020.05.30"]
[Round "2"]
[White "Meri-Arabidze"]
[Black "caspiwins"]
[Result "1-0"]
[WhiteElo "2138"]
[BlackElo "2330"]
[TimeControl "600+2"]
[EndTime "8:52:14 PDT"]
[Termination "Meri-Arabidze won by checkmate"]

1. d4 {[%clk 0:10:01.9]} 1... f5 {[%clk 0:09:59.7]} 2. e4 {[%clk 0:09:59.2]}
2... fxe4 {[%clk 0:09:59.6]} 3. Nc3 {[%clk 0:09:57.7]} 3... Nf6 {[%clk
0:09:59.9]} 4. Bg5 {[%clk 0:09:58.6]} 4... Nc6 {[%clk 0:10:00.7]} 5. d5 {[%clk
0:09:59.1]} 5... Ne5 {[%clk 0:10:00]} 6. Qe2 {[%clk 0:09:44.6]} 6... Nf7 {[%clk
0:10:00.6]} 7. Bxf6 {[%clk 0:09:40.3]} 7... exf6 {[%clk 0:10:02.5]} 8. Nxe4
{[%clk 0:09:41.5]} 8... Bb4+ {[%clk 0:10:01.3]} 9. c3 {[%clk 0:09:39.7]} 9...
Be7 {[%clk 0:10:01.6]} 10. d6 {[%clk 0:09:35.4]} 10... cxd6 {[%clk 0:10:01.8]}
11. O-O-O {[%clk 0:09:36.1]} 11... O-O {[%clk 0:09:49.3]} 12. Nf3 {[%clk
0:09:25.2]} 12... b6 {[%clk 0:09:09.8]} 13. Nd4 {[%clk 0:09:17.9]} 13... Bb7
{[%clk 0:08:44.5]} 14. Ng3 {[%clk 0:09:11.2]} 14... Re8 {[%clk 0:08:40.2]} 15.
Qc2 {[%clk 0:09:10.1]} 15... g6 {[%clk 0:08:16.2]} 16. h4 {[%clk 0:09:00.3]}
16... f5 {[%clk 0:07:59.3]} 17. h5 {[%clk 0:08:45.7]} 17... Bg5+ {[%clk
0:07:59.7]} 18. Kb1 {[%clk 0:08:41.7]} 18... Qf6 {[%clk 0:07:58.8]} 19. hxg6
{[%clk 0:07:59.5]} 19... hxg6 {[%clk 0:07:59]} 20. Bc4 {[%clk 0:07:57.4]} 20...
d5 {[%clk 0:07:01.8]} 21. Bb3 {[%clk 0:07:19.8]} 21... Nd6 {[%clk 0:06:15.2]}
22. Rh2 {[%clk 0:06:27.1]} 22... Kg7 {[%clk 0:06:01.7]} 23. Nge2 {[%clk
0:05:35.3]} 23... Ne4 {[%clk 0:04:53.9]} 24. f4 {[%clk 0:05:29.5]} 24... Bh6
{[%clk 0:04:54.1]} 25. Rg1 {[%clk 0:05:09.2]} 25... Nf2 {[%clk 0:04:28.2]} 26.
Ng3 {[%clk 0:05:07.4]} 26... Ng4 {[%clk 0:04:20.6]} 27. Ndxf5+ {[%clk
0:05:04.8]} 27... gxf5 {[%clk 0:04:21.6]} 28. Nh5+ {[%clk 0:05:05.2]} 28... Kg6
{[%clk 0:03:48.6]} 29. Nxf6 {[%clk 0:05:00.8]} 29... Kxf6 {[%clk 0:03:47.8]} 30.
Rh5 {[%clk 0:04:54.4]} 30... Re4 {[%clk 0:03:48.3]} 31. g3 {[%clk 0:04:24]}
31... Rae8 {[%clk 0:03:48.3]} 32. a3 {[%clk 0:04:17.7]} 32... Bg7 {[%clk
0:03:11.5]} 33. Ka2 {[%clk 0:04:10]} 33... a5 {[%clk 0:03:10.7]} 34. Qd3 {[%clk
0:03:53.7]} 34... Ne3 {[%clk 0:02:48.9]} 35. Qb5 {[%clk 0:03:14.5]} 35... Bc6
{[%clk 0:02:49.1]} 36. Qxb6 {[%clk 0:03:02.9]} 36... a4 {[%clk 0:02:50.4]} 37.
Bd1 {[%clk 0:02:56.3]} 37... Nc4 {[%clk 0:02:25.3]} 38. Qa7 {[%clk 0:02:30.6]}
38... d4 {[%clk 0:02:03.6]} 39. Bf3 {[%clk 0:02:17]} 39... dxc3 {[%clk
0:01:50.3]} 40. Bxe4 {[%clk 0:02:16.2]} 40... Rxe4 {[%clk 0:01:52.2]} 41. Qc5
{[%clk 0:01:51.3]} 41... Ne3 {[%clk 0:01:52]} 42. Qxc3+ {[%clk 0:01:31.8]} 42...
Ke6 {[%clk 0:01:50.6]} 43. Qxg7 {[%clk 0:01:26.6]} 43... Bd5+ {[%clk 0:01:51.4]}
44. Kb1 {[%clk 0:01:27.6]} 44... Bc4 {[%clk 0:01:44.8]} 45. Rh6+ {[%clk
0:01:09.6]} 45... Kd5 {[%clk 0:01:41.8]} 46. Qxd7+ {[%clk 0:01:10.6]} 46... Kc5
{[%clk 0:01:42.9]} 47. Rc6+ {[%clk 0:01:08.9]} 47... Kb5 {[%clk 0:01:43.4]} 48.
Qb7+ {[%clk 0:01:08.9]} 48... Ka5 {[%clk 0:01:44.3]} 49. Qb6# {[%clk 0:01:09.9]}
1-0

[Event "GrandPrix_30.05"]
[Site "Chess.com"]
[Date "2020.05.30"]
[Round "2"]
[White "Olga_Girya"]
[Black "Haapana"]
[Result "1/2-1/2"]
[WhiteElo "2171"]
[BlackElo "2369"]
[TimeControl "600+2"]
[EndTime "8:52:21 PDT"]
[Termination "Game drawn by agreement"]

1. d4 {[%clk 0:10:01]} 1... d5 {[%clk 0:09:57.4]} 2. c4 {[%clk 0:10:01.2]} 2...
e6 {[%clk 0:09:58]} 3. Nf3 {[%clk 0:10:02]} 3... c5 {[%clk 0:09:52]} 4. cxd5
{[%clk 0:09:59.9]} 4... exd5 {[%clk 0:09:46.4]} 5. g3 {[%clk 0:09:45.9]} 5...
Nc6 {[%clk 0:09:44.2]} 6. Bg2 {[%clk 0:09:44]} 6... Nf6 {[%clk 0:09:44.5]} 7.
O-O {[%clk 0:09:43.3]} 7... Be7 {[%clk 0:09:45.9]} 8. dxc5 {[%clk 0:09:43.5]}
8... Bxc5 {[%clk 0:09:44.3]} 9. a3 {[%clk 0:09:44.7]} 9... O-O {[%clk
0:09:28.3]} 10. b4 {[%clk 0:09:41.4]} 10... Bb6 {[%clk 0:09:18.3]} 11. Nc3
{[%clk 0:09:40.5]} 11... h6 {[%clk 0:07:38.6]} 12. Bb2 {[%clk 0:09:24.1]} 12...
Bg4 {[%clk 0:06:55.4]} 13. Na4 {[%clk 0:09:05]} 13... Re8 {[%clk 0:06:26.4]} 14.
Nxb6 {[%clk 0:08:53.3]} 14... axb6 {[%clk 0:06:12.6]} 15. h3 {[%clk 0:08:30.8]}
15... Bxf3 {[%clk 0:05:46]} 16. exf3 {[%clk 0:07:58.1]} 16... b5 {[%clk
0:03:51.3]} 17. Qd3 {[%clk 0:07:44.4]} 17... Qb6 {[%clk 0:03:47.9]} 18. Bxf6
{[%clk 0:07:21.7]} 18... gxf6 {[%clk 0:03:48.3]} 19. Qxd5 {[%clk 0:07:08.9]}
19... Rad8 {[%clk 0:03:41.6]} 20. Qh5 {[%clk 0:02:53.4]} 20... Kg7 {[%clk
0:03:38.1]} 21. Qg4+ {[%clk 0:02:46.5]} 21... Kf8 {[%clk 0:03:27.1]} 22. Qh5
{[%clk 0:02:09.4]} 22... Kg7 {[%clk 0:03:26.9]} 23. Rad1 {[%clk 0:02:07.2]}
23... Nd4 {[%clk 0:03:25.9]} 24. f4 {[%clk 0:01:35.8]} 24... Ne2+ {[%clk
0:03:11.9]} 25. Kh2 {[%clk 0:01:36.1]} 25... Rxd1 {[%clk 0:03:12.2]} 26. Rxd1
{[%clk 0:01:37.6]} 26... Qxf2 {[%clk 0:03:13]} 27. Qg4+ {[%clk 0:01:36.1]} 27...
Kf8 {[%clk 0:03:13.6]} 28. Qf3 {[%clk 0:00:37.1]} 28... Qxf3 {[%clk 0:03:00.6]}
29. Bxf3 {[%clk 0:00:38.2]} 29... Re3 {[%clk 0:03:01]} 30. Kg2 {[%clk
0:00:39.5]} 30... Nc3 {[%clk 0:02:46.7]} 31. Rd7 {[%clk 0:00:39.8]} 31... Nb1
{[%clk 0:02:35.4]} 32. Rxb7 {[%clk 0:00:39.6]} 32... Nxa3 {[%clk 0:02:35.5]} 33.
Bd5 {[%clk 0:00:33]} 33... Re7 {[%clk 0:02:35.4]} 34. Rb8+ {[%clk 0:00:32.1]}
34... Kg7 {[%clk 0:02:36.3]} 35. Kf3 {[%clk 0:00:31]} 35... f5 {[%clk
0:02:33.3]} 36. g4 {[%clk 0:00:31.1]} 36... fxg4+ {[%clk 0:02:31.2]} 37. hxg4
{[%clk 0:00:27.7]} 37... Nc2 {[%clk 0:02:32]} 38. Kg3 {[%clk 0:00:23.7]} 38...
Nxb4 {[%clk 0:02:03.5]} 39. Rxb5 {[%clk 0:00:22.2]} 39... Nxd5 {[%clk 0:01:51]}
40. Rxd5 {[%clk 0:00:22.9]} 40... Rb7 {[%clk 0:01:49.7]} 41. Rd3 {[%clk
0:00:21.3]} 1/2-1/2

[Event "GrandPrix_30.05"]
[Site "Chess.com"]
[Date "2020.05.30"]
[Round "2"]
[White "Novoselski"]
[Black "woodhy"]
[Result "0-1"]
[WhiteElo "2288"]
[BlackElo "2197"]
[TimeControl "600+2"]
[EndTime "8:52:21 PDT"]
[Termination "woodhy won by resignation"]

1. e4 {[%clk 0:10:01.9]} 1... e6 {[%clk 0:10:00.5]} 2. d4 {[%clk 0:10:01.2]}
2... d5 {[%clk 0:10:01.7]} 3. e5 {[%clk 0:10:01.4]} 3... c5 {[%clk 0:10:02.4]}
4. Qg4 {[%clk 0:10:01.9]} 4... Nc6 {[%clk 0:09:51.7]} 5. Nf3 {[%clk 0:10:02]}
5... cxd4 {[%clk 0:09:41.6]} 6. Bd3 {[%clk 0:10:01.8]} 6... f5 {[%clk
0:09:37.5]} 7. Qg3 {[%clk 0:10:00.3]} 7... Bd7 {[%clk 0:08:50.3]} 8. O-O {[%clk
0:09:58]} 8... Qb6 {[%clk 0:08:44.7]} 9. a3 {[%clk 0:09:56.9]} 9... a5 {[%clk
0:08:44.2]} 10. Nbd2 {[%clk 0:09:46.7]} 10... a4 {[%clk 0:08:42.5]} 11. Re1
{[%clk 0:09:42.1]} 11... Nh6 {[%clk 0:08:42.6]} 12. Nf1 {[%clk 0:09:19.2]} 12...
g6 {[%clk 0:08:28.6]} 13. Bg5 {[%clk 0:08:48.6]} 13... Nf7 {[%clk 0:08:27]} 14.
Bf6 {[%clk 0:08:45.4]} 14... Rg8 {[%clk 0:08:27.8]} 15. Ng5 {[%clk 0:08:09.5]}
15... Nxg5 {[%clk 0:08:24.3]} 16. Qxg5 {[%clk 0:08:08.9]} 16... Kf7 {[%clk
0:08:13.1]} 17. Qh4 {[%clk 0:07:53.4]} 17... h6 {[%clk 0:08:09.2]} 18. Rab1
{[%clk 0:07:45]} 18... Bg7 {[%clk 0:07:32.1]} 19. b3 {[%clk 0:07:03.5]} 19...
Qc7 {[%clk 0:06:25]} 20. bxa4 {[%clk 0:06:31.2]} 20... Rxa4 {[%clk 0:05:51.1]}
21. Rb3 {[%clk 0:06:25.6]} 21... Rf8 {[%clk 0:04:28.8]} 22. Reb1 {[%clk
0:06:09.7]} 22... Ra7 {[%clk 0:04:27.5]} 23. Bb5 {[%clk 0:05:21.2]} 23... Kg8
{[%clk 0:03:00.8]} 24. Bxg7 {[%clk 0:05:11.8]} 24... Kxg7 {[%clk 0:03:00.3]} 25.
Bxc6 {[%clk 0:05:11]} 25... bxc6 {[%clk 0:02:53.2]} 26. Qxd4 {[%clk 0:05:10.7]}
26... c5 {[%clk 0:02:50.4]} 27. Qb2 {[%clk 0:05:02.5]} 27... Rfa8 {[%clk
0:02:44.8]} 28. Nd2 {[%clk 0:03:52.3]} 28... Bc6 {[%clk 0:02:38.8]} 29. c4
{[%clk 0:03:11.8]} 29... d4 {[%clk 0:02:34.8]} 30. f4 {[%clk 0:03:09.7]} 30...
Rd8 {[%clk 0:02:02.7]} 31. Rg3 {[%clk 0:02:56.4]} 31... Rb7 {[%clk 0:01:53.3]}
32. Qc1 {[%clk 0:02:55.5]} 32... Rdb8 {[%clk 0:01:51.3]} 33. Rxb7 {[%clk
0:02:53.5]} 33... Rxb7 {[%clk 0:01:50.4]} 34. h4 {[%clk 0:02:46.9]} 34... Kh7
{[%clk 0:01:10]} 35. Qd1 {[%clk 0:02:30.9]} 35... Be8 {[%clk 0:01:01]} 36. a4
{[%clk 0:02:22]} 36... Rb2 {[%clk 0:00:59.4]} 37. Ra3 {[%clk 0:02:15.3]} 37...
Qa5 {[%clk 0:00:56.3]} 38. Nb3 {[%clk 0:01:56.1]} 38... Qb4 {[%clk 0:00:49.3]}
39. Qa1 {[%clk 0:01:49.4]} 39... Rxb3 {[%clk 0:00:43.7]} 40. Rxb3 {[%clk
0:01:49.6]} 40... Qxb3 {[%clk 0:00:45.6]} 41. a5 {[%clk 0:01:50.3]} 41... Qxc4
{[%clk 0:00:46.2]} 42. a6 {[%clk 0:01:49.4]} 42... Qd5 {[%clk 0:00:44]} 43. a7
{[%clk 0:01:47.3]} 43... Bc6 {[%clk 0:00:44.7]} 44. Qb2 {[%clk 0:01:45.9]} 44...
d3 {[%clk 0:00:45.2]} 0-1

[Event "GrandPrix_30.05"]
[Site "Chess.com"]
[Date "2020.05.30"]
[Round "2"]
[White "moro182"]
[Black "Baron_von_Koenig"]
[Result "1-0"]
[WhiteElo "2517"]
[BlackElo "2123"]
[TimeControl "600+2"]
[EndTime "8:52:32 PDT"]
[Termination "moro182 won by resignation"]

1. d4 {[%clk 0:10:01.9]} 1... Nc6 {[%clk 0:09:55.8]} 2. c4 {[%clk 0:09:45.2]}
2... e5 {[%clk 0:09:56]} 3. d5 {[%clk 0:09:39.5]} 3... Bb4+ {[%clk 0:09:56.4]}
4. Nd2 {[%clk 0:09:33.2]} 4... Nce7 {[%clk 0:09:55.8]} 5. a3 {[%clk 0:09:32.8]}
5... Bxd2+ {[%clk 0:09:56.3]} 6. Bxd2 {[%clk 0:09:29.8]} 6... d6 {[%clk
0:09:57.4]} 7. e4 {[%clk 0:09:30.5]} 7... f5 {[%clk 0:09:58.1]} 8. Nf3 {[%clk
0:09:25.1]} 8... Nf6 {[%clk 0:09:58.6]} 9. exf5 {[%clk 0:09:14.4]} 9... Bxf5
{[%clk 0:09:38.5]} 10. Qa4+ {[%clk 0:09:14.9]} 10... Qd7 {[%clk 0:08:58.9]} 11.
Qxd7+ {[%clk 0:09:13.9]} 11... Kxd7 {[%clk 0:08:59.6]} 12. Be2 {[%clk
0:09:05.2]} 12... Bg4 {[%clk 0:08:38.9]} 13. O-O-O {[%clk 0:08:19.6]} 13... Rhf8
{[%clk 0:08:35.8]} 14. Rhe1 {[%clk 0:08:11.3]} 14... Rae8 {[%clk 0:08:04]} 15.
Bg5 {[%clk 0:08:02.9]} 15... Kc8 {[%clk 0:07:52.7]} 16. h3 {[%clk 0:07:48.3]}
16... Bh5 {[%clk 0:07:52.9]} 17. g4 {[%clk 0:07:35.9]} 17... Bg6 {[%clk
0:07:53.6]} 18. Be3 {[%clk 0:07:37.3]} 18... b6 {[%clk 0:07:32.7]} 19. Nh4
{[%clk 0:07:37.4]} 19... Ne4 {[%clk 0:06:40.9]} 20. Rf1 {[%clk 0:07:10]} 20...
Nc5 {[%clk 0:06:17.9]} 21. b4 {[%clk 0:06:56.8]} 21... Nd7 {[%clk 0:05:45.3]}
22. Kb2 {[%clk 0:06:48.4]} 22... h6 {[%clk 0:05:43.3]} 23. Rde1 {[%clk
0:06:14.2]} 23... Bh7 {[%clk 0:05:42]} 24. Kc3 {[%clk 0:06:08.2]} 24... g5
{[%clk 0:05:25.4]} 25. Nf3 {[%clk 0:06:08.3]} 25... Ng6 {[%clk 0:05:22.3]} 26.
Rg1 {[%clk 0:05:17.4]} 26... Nf4 {[%clk 0:05:18.1]} 27. Bf1 {[%clk 0:05:18.2]}
27... Nxh3 {[%clk 0:05:05.5]} 28. Bxh3 {[%clk 0:05:19.9]} 28... Rxf3 {[%clk
0:05:05.7]} 29. Bg2 {[%clk 0:05:21.6]} 29... Rf6 {[%clk 0:04:59.9]} 30. Rh1
{[%clk 0:05:22.6]} 30... Rg6 {[%clk 0:02:50.4]} 31. Be4 {[%clk 0:04:57.6]} 31...
Rg7 {[%clk 0:02:51.4]} 32. Bf3 {[%clk 0:04:59.1]} 32... Rf8 {[%clk 0:02:26.6]}
33. Bd1 {[%clk 0:04:50.2]} 33... Rf6 {[%clk 0:01:57.3]} 34. Rh3 {[%clk
0:04:34.2]} 34... Rgf7 {[%clk 0:01:29.7]} 35. Reh1 {[%clk 0:03:53.8]} 35... Be4
{[%clk 0:01:24.3]} 36. R1h2 {[%clk 0:03:55.2]} 36... Bf3 {[%clk 0:01:25.3]} 37.
Bc2 {[%clk 0:03:56.6]} 37... e4 {[%clk 0:01:09.6]} 38. Rxh6 {[%clk 0:03:44.7]}
38... Rxh6 {[%clk 0:01:07.6]} 39. Rxh6 {[%clk 0:03:46.6]} 39... Ne5 {[%clk
0:01:08.9]} 40. Rh8+ {[%clk 0:03:36.6]} 40... Kb7 {[%clk 0:01:09.4]} 41. Bxg5
{[%clk 0:02:38.7]} 41... Nxg4 {[%clk 0:01:10.4]} 42. Ba4 {[%clk 0:02:39.1]}
42... Ne5 {[%clk 0:01:00.3]} 43. Be3 {[%clk 0:02:27.5]} 43... Be2 {[%clk
0:00:26]} 44. c5 {[%clk 0:02:27.3]} 44... bxc5 {[%clk 0:00:25.2]} 45. bxc5
{[%clk 0:02:29.2]} 45... dxc5 {[%clk 0:00:26.5]} 46. Bxc5 {[%clk 0:02:31.1]}
46... Rf3+ {[%clk 0:00:27.3]} 47. Kd4 {[%clk 0:02:27.9]} 47... Rxf2 {[%clk
0:00:14.9]} 48. Kxe5 {[%clk 0:02:22.3]} 48... Rf3 {[%clk 0:00:15.8]} 49. Bc6+
{[%clk 0:02:21.5]} 49... Ka6 {[%clk 0:00:16.2]} 50. Ra8 {[%clk 0:02:23.1]} 1-0

[Event "GrandPrix_30.05"]
[Site "Chess.com"]
[Date "2020.05.30"]
[Round "2"]
[White "VMikhalevski"]
[Black "Meizon19"]
[Result "1-0"]
[WhiteElo "2663"]
[BlackElo "2312"]
[TimeControl "600+2"]
[EndTime "8:52:35 PDT"]
[Termination "VMikhalevski won by resignation"]

1. Nf3 {[%clk 0:10:01.9]} 1... Nf6 {[%clk 0:10:00.5]} 2. g3 {[%clk 0:10:02.3]}
2... g6 {[%clk 0:10:01.1]} 3. Bg2 {[%clk 0:10:02.5]} 3... Bg7 {[%clk 0:10:02.3]}
4. d4 {[%clk 0:10:01.7]} 4... O-O {[%clk 0:10:03]} 5. O-O {[%clk 0:10:01.2]}
5... d6 {[%clk 0:10:04]} 6. b3 {[%clk 0:10:01.6]} 6... c5 {[%clk 0:08:58.7]} 7.
Bb2 {[%clk 0:10:01.5]} 7... Nc6 {[%clk 0:08:55.1]} 8. c4 {[%clk 0:09:38.6]} 8...
Bg4 {[%clk 0:08:48.6]} 9. d5 {[%clk 0:08:30.4]} 9... Nb4 {[%clk 0:08:46.4]} 10.
h3 {[%clk 0:08:19.5]} 10... Bf5 {[%clk 0:08:43.5]} 11. Nh4 {[%clk 0:08:10.3]}
11... Bd7 {[%clk 0:08:31]} 12. Nd2 {[%clk 0:07:31.7]} 12... b5 {[%clk
0:08:20.6]} 13. a3 {[%clk 0:06:37.9]} 13... Na6 {[%clk 0:08:21.1]} 14. e4 {[%clk
0:06:36.9]} 14... Rb8 {[%clk 0:08:10.9]} 15. Bc3 {[%clk 0:06:27.5]} 15... Qc8
{[%clk 0:07:45.7]} 16. Kh2 {[%clk 0:06:22.9]} 16... Ng4+ {[%clk 0:07:41.2]} 17.
hxg4 {[%clk 0:06:20.4]} 17... Bxc3 {[%clk 0:07:41.2]} 18. Rc1 {[%clk 0:06:16.5]}
18... Bf6 {[%clk 0:07:18.8]} 19. Bf3 {[%clk 0:05:52]} 19... bxc4 {[%clk
0:07:10.1]} 20. Nxc4 {[%clk 0:05:42.9]} 20... Nc7 {[%clk 0:07:00.1]} 21. a4
{[%clk 0:05:34.4]} 21... Qb7 {[%clk 0:06:37.3]} 22. Rb1 {[%clk 0:05:29.8]} 22...
Qb4 {[%clk 0:06:36.7]} 23. Be2 {[%clk 0:05:16.2]} 23... Qc3 {[%clk 0:06:08.3]}
24. f4 {[%clk 0:04:55.7]} 24... Qd4 {[%clk 0:05:39.5]} 25. Qc2 {[%clk
0:04:36.4]} 25... Na6 {[%clk 0:04:59]} 26. g5 {[%clk 0:03:42]} 26... Nb4 {[%clk
0:04:51.9]} 27. Qd1 {[%clk 0:03:38.1]} 27... Bg7 {[%clk 0:04:52.1]} 28. Qxd4
{[%clk 0:03:33.5]} 28... cxd4 {[%clk 0:04:35.7]} 29. f5 {[%clk 0:03:03.6]} 29...
Be5 {[%clk 0:04:17.2]} 30. Nxe5 {[%clk 0:02:43.4]} 30... dxe5 {[%clk 0:04:18.1]}
31. Bc4 {[%clk 0:02:42.7]} 31... Nc2 {[%clk 0:03:40.3]} 32. Nf3 {[%clk
0:02:19.1]} 32... Ne3 {[%clk 0:03:31.7]} 33. Nxe5 {[%clk 0:02:19.7]} 33... Nxf1+
{[%clk 0:03:28.7]} 34. Rxf1 {[%clk 0:02:19.6]} 34... Rb7 {[%clk 0:03:15.9]} 35.
d6 {[%clk 0:02:07.7]} 35... Be8 {[%clk 0:02:36.4]} 36. fxg6 {[%clk 0:01:55.3]}
36... hxg6 {[%clk 0:02:21.2]} 37. Nxg6 {[%clk 0:01:36.4]} 37... exd6 {[%clk
0:02:20.5]} 38. Rd1 {[%clk 0:01:33.5]} 38... d5 {[%clk 0:02:04.9]} 39. Bxd5
{[%clk 0:01:29.4]} 39... Rb4 {[%clk 0:02:05.9]} 40. Kg2 {[%clk 0:01:13.1]} 40...
Bd7 {[%clk 0:01:34]} 41. Nxf8 {[%clk 0:01:12.7]} 41... Kxf8 {[%clk 0:01:35.9]}
42. Kf2 {[%clk 0:01:06.6]} 42... Bg4 {[%clk 0:01:31.4]} 43. Rc1 {[%clk 0:01:05]}
43... Kg7 {[%clk 0:01:28]} 44. Rc7 {[%clk 0:01:04.1]} 44... Kg6 {[%clk
0:01:29.2]} 45. Rxf7 {[%clk 0:01:02]} 45... Kxg5 {[%clk 0:01:27.3]} 46. Rg7+
{[%clk 0:01:02.7]} 1-0